[Event "1st Pelion Open 2018"]
[Site "Agios Ioannis-Pelion"]
[Date "2018.06.17"]
[Round "2"]
[White "Ristic, Nenad"]
[Black "Tsekouras, Vasilios"]
[Result "1-0"]
[ECO "B27"]
[WhiteElo "2372"]
[BlackElo "1880"]
[Annotator "ChessBase"]
[PlyCount "69"]
[EventType "swiss"]
[EventCountry "GRE"]
[SourceTitle "playchess.com"]
[Source "ChessBase"]
[SourceQuality "1"]
[TimeControl "40/5400+30:1800+30"]

1. Nf3 b6 2. e4 Bb7 3. Nc3 c5 4. d4 cxd4 5. Nxd4 g6 6. Bf4 Bg7 7. Ndb5 Na6 8. Nd5 d6 9. f3 Be5 10. Bg5 h6 11. Be3 Nf6 12. Nxf6+ Bxf6 13. c3 Nc7 14. Qd2 h5 15. Bd4 Bxd4 16. Nxd4 d5 17. e5 Qd7 18. Bd3 O-O-O 19. O-O Rdg8 20. a4 g5 21. a5 b5 22. a6 Bxa6 23. Qe2 Rh6 24. Bf5 e6 25. Bd3 Qe7 26. b4 Bb7 27. Rxa7 g4 28. f4 f6 29. Nxb5 Nxb5 30. Bxb5 Qc7 31. Qf2 Rg7 32. Ba6 g3 33. hxg3 Qc6 34. b5 Qc4 35. Qb6 1-0

[Event "1st Pelion Open 2018"]
[Site "Agios Ioannis-Pelion"]
[Date "2018.06.17"]
[Round "3"]
[White "Markidis, Konstantinos (2339)"]
[Black "Tsarsitalidis, Konstantinos (1773)"]
[Result "1-0"]
[ECO "B52"]
[WhiteElo "2339"]
[BlackElo "1773"]
[Annotator "NA"]
[PlyCount "77"]
[EventType "swiss"]
[EventCountry "GRE"]
[SourceTitle "playchess.com"]
[Source "ChessBase"]
[SourceQuality "1"]
[TimeControl "40/5400+30:1800+30"]

1. e4 c5 2. Nf3 d6 3. Bb5+ Bd7 4. c4 Nf6 5. Nc3 {B52: Sicilian: Moscow Variation with 3...Bd7} a6 6. Bxd7+ Nbxd7 7. a4 (7. O-O Rc8 8. Re1 e6 9. b3 Ne5 10. d3 Be7 11. Bf4 Nfd7 12. Nxe5 dxe5 {½-½ (29) Vachier Lagrave,M (2804)-Grischuk,A (2737) Doha 2016}) 7... g6 8. O-O Bg7 9. h3 $146 ({Predecessor:} 9. d4 cxd4 10. Nxd4 Rc8 11. b3 Qa5 12. Bb2 O-O 13. Nd5 Nxd5 14. exd5 {½-½ (26) Mortensen,H (2065)-Kjartansson,O Copenhagen 1998}) 9... O-O 10. d3 Rb8 11. Be3 Ne8 12. d4 cxd4 13. Nxd4 Ne5 14. b3 Nc7 15. Qd2 Nc6 16. a5 Ne6 17. Nxe6 fxe6 18. Bb6 Qe8 19. Rac1 Qf7 20. Ne2 Ne5 21. Be3 Nd7 22. b4 b6 23. axb6 Nxb6 24. c5 Nc8 25. Rfd1 d5 26. exd5 {[%emt 1:27:44]} exd5 27. Qxd5 {[%emt 0:01:08]} Qxd5 28. Rxd5 {[%emt 0:00:12]} Rxb4 29. Nd4 {[%emt 0:00:59]} Kf7 30. Nc6 {[%emt 0:00:21]} Re4 {[%emt 1:28:32]} 31. Rc2 $18 {[%emt 0:00:19]} Bf6 {[%emt 0:10:16]} 32. Ra2 {[%emt 0:00:13]} e6 {[%emt 0:04:05]} 33. Rd7+ {[%emt 0:00:45]} Kg8 {[%emt 0:00:01]} 34. Rxa6 {[%emt 0:00:15]} h5 {[%emt 0:01:58]} 35. Rc7 {[%emt 0:02:33]} Bh4 {[%emt 0:02:37]} 36. g3 {[%emt 0:01:12]} Bxg3 {[%emt 0:00:09]} 37. Rxc8 {[%emt 0:00:07]} Rxc8 {[%emt 0:00:24]} 38. Ne7+ {[%emt 0:00:07]} Kf7 {[%emt 0:00:55]} 39. Nxc8 {[%emt 0:00:07]} 1-0

[Event "1st Pelion Open 2018"]
[Site "Agios Ioannis-Pelion"]
[Date "2018.06.18"]
[Round "4"]
[White "Todorovic, Goran N (2335)"]
[Black "Ristic, Nenad"]
[Result "1/2-1/2"]
[ECO "C69"]
[WhiteElo "2335"]
[BlackElo "2372"]
[Annotator "NA"]
[PlyCount "23"]
[EventType "swiss"]
[EventCountry "GRE"]
[SourceTitle "playchess.com"]
[Source "ChessBase"]
[SourceQuality "1"]
[TimeControl "40/5400+30:1800+30"]

1. e4 e5 2. Nf3 Nc6 3. Bb5 a6 4. Bxc6 dxc6 5. O-O f6 6. d4 exd4 7. Nxd4 c5 8. Nb3 Qxd1 9. Rxd1 Bg4 10. f3 Bd7 11. Nc3 O-O-O 12. Be3 1/2-1/2

[Event "1st Pelion Open 2018"]
[Site "Agios Ioannis-Pelion"]
[Date "2018.06.19"]
[Round "5"]
[White "Ristic, Nenad"]
[Black "Lagaras, Stylianos"]
[Result "0-1"]
[ECO "B23"]
[WhiteElo "2372"]
[BlackElo "1937"]
[Annotator "NA"]
[PlyCount "144"]
[EventType "swiss"]
[EventCountry "GRE"]
[SourceTitle "playchess.com"]
[Source "ChessBase"]
[SourceQuality "1"]
[TimeControl "40/5400+30:1800+30"]

1. e4 c5 2. Nc3 d6 3. f4 g6 4. Nf3 Bg7 5. Bc4 Nc6 6. O-O e6 7. d3 Nge7 8. Qe1 O-O 9. f5 gxf5 10. Qh4 fxe4 11. dxe4 Ng6 12. Qh5 Nce5 13. Nxe5 Bxe5 14. Bh6 Re8 15. Rad1 a6 16. Bg5 f6 17. Be3 b5 18. Be2 Qe7 19. Bh6 Bb7 20. Bf3 Kh8 21. g3 Rg8 22. Bg2 Bd4+ {[%emt 1:22:07]} 23. Kh1 Ne5 {[%emt 0:00:34]} 24. Ne2 Bxb2 {[%emt 0:01:32]} 25. c3 b4 {[%emt 0:00:41]} 26. cxb4 c4 {[%emt 0:01:19]} 27. Rd2 c3 {[%emt 0:02:10]} 28. Rc2 Rac8 {[%emt 0:00:47]} 29. Bc1 Bxc1 {[%emt 0:02:45]} 30. Rfxc1 Rg5 {[%emt 0:00:41]} 31. Qh4 Rg4 {[%emt 0:00:57]} 32. Qh6 Bxe4 {[%emt 0:02:23]} 33. Bxe4 Rxe4 {[%emt 0:00:05]} 34. Rxc3 Rec4 {[%emt 0:01:15]} 35. Rxc4 Rxc4 {[%emt 0:02:50]} 36. Rxc4 Nxc4 {[%emt 0:00:04]} 37. Nf4 Ne5 {[%emt 0:02:09]} 38. Kg2 Kg8 {[%emt 0:02:19]} 39. Nh5 Ng6 {[%emt 0:02:48]} 40. Qc1 Qb7+ 41. Kh3 Qf3 42. Qc8+ Nf8 43. Nf4 Qf1+ {[%emt 0:20:12]} 44. Kh4 Qf2 {[%emt 0:00:26]} 45. Kh3 Qxa2 {[%emt 0:00:59]} 46. Nh5 Qf2 {[%emt 0:01:55]} 47. Qxa6 Qf5+ {[%emt 0:01:57]} 48. g4 Qf3+ {[%emt 0:00:28]} 49. Ng3 f5 {[%emt 0:04:10]} 50. gxf5 exf5 {[%emt 0:00:19]} 51. Qc4+ d5 {[%emt 0:00:31]} 52. Qe2 Qxe2 {[%emt 0:00:21]} 53. Nxe2 Kf7 {[%emt 0:00:47]} 54. b5 Kf6 {[%emt 0:01:31]} 55. Kg3 Ke5 {[%emt 0:00:26]} 56. Kf3 Ne6 {[%emt 0:00:42]} 57. b6 Kd6 {[%emt 0:01:21]} 58. Ng3 f4 {[%emt 0:00:30]} 59. Ne2 Kc6 {[%emt 0:00:22]} 60. Nxf4 Nxf4 {[%emt 0:00:31]} 61. Kxf4 Kxb6 {[%emt 0:00:09]} 62. Ke3 Kc5 {[%emt 0:01:25]} 63. Kd3 d4 {[%emt 0:01:18]} 64. h4 h5 {[%emt 0:00:42]} 65. Kd2 Kd5 {[%emt 0:00:38]} 66. Kd3 Ke5 {[%emt 0:00:01]} 67. Kd2 Ke4 {[%emt 0:00:19]} 68. Ke2 Kf4 {[%emt 0:00:13]} 69. Kd3 Kg4 {[%emt 0:00:11]} 70. Kxd4 Kxh4 {[%emt 0:00:22]} 71. Ke3 Kg3 {[%emt 0:00:07]} 72. Ke2 Kg2 0-1

[Event "1st Pelion Open 2018"]
[Site "Agios Ioannis-Pelion"]
[Date "2018.06.19"]
[Round "5"]
[White "Papapostolou, Apostolos"]
[Black "Todorovic, Goran N"]
[Result "1-0"]
[ECO "E20"]
[WhiteElo "1920"]
[BlackElo "2335"]
[Annotator "NA"]
[PlyCount "91"]
[EventType "swiss"]
[EventCountry "GRE"]
[SourceTitle "playchess.com"]
[Source "ChessBase"]
[SourceQuality "1"]
[TimeControl "40/5400+30:1800+30"]

1. d4 Nf6 2. c4 e6 3. Nc3 Bb4 4. g3 c5 5. Nf3 Ne4 6. Qc2 Qa5 7. Qxe4 Bxc3+ 8. Bd2 Bxd2+ 9. Nxd2 cxd4 10. Qxd4 O-O 11. Bg2 $14 {LiveBook: 19 Games} Nc6 12. Qe3 d5 13. O-O d4 14. Qd3 e5 15. a3 Qc7 16. b4 f5 17. Bd5+ Kh8 18. e4 f4 19. f3 Bh3 20. Rf2 Ne7 21. g4 Rad8 22. a4 Rf6 23. Kh1 h5 24. Rg1 b6 25. gxh5 Rh6 26. Rg5 Qd6 27. Qb1 Qf6 28. Qg1 Rd7 29. b5 g6 30. hxg6 {[%emt 1:28:24]} Rxg6 31. Rh5+ {[%emt 0:00:34]} Kg7 32. Rxh3 {[%emt 0:02:56]} Rxg1+ 33. Kxg1 {[%emt 0:00:05]} Ng6 34. Rg2 {[%emt 0:01:20]} Qd6 35. Rh5 {[%emt 0:00:59]} d3 36. h4 {[%emt 0:02:30]} Qc5+ 37. Kh2 {[%emt 0:01:26]} Rd6 38. Rxe5 {[%emt 0:05:08]} Kh6 39. Re8 {[%emt 0:00:19]} Qd4 40. e5 Rxd5 41. cxd5 Qxd5 42. Ne4 Qf7 43. Nd6 {[%emt 0:19:14]} Qd7 44. Rg8 {[%emt 0:02:26]} Kh7 45. R8xg6 {[%emt 0:01:51]} d2 46. R6g5 1-0

[Event "1st Pelion Open 2018"]
[Site "Agios Ioannis-Pelion"]
[Date "2018.06.20"]
[Round "6"]
[White "Angelis, Mihail"]
[Black "Papapostolou, Apostolos"]
[Result "1/2-1/2"]
[ECO "E60"]
[WhiteElo "2148"]
[BlackElo "1920"]
[Annotator "NA"]
[PlyCount "48"]
[EventType "swiss"]
[EventCountry "GRE"]
[SourceTitle "playchess.com"]
[Source "ChessBase"]
[SourceQuality "1"]
[TimeControl "40/5400+30:1800+30"]

1. Nf3 Nf6 2. d4 g6 3. c4 Bg7 4. g3 O-O 5. Bg2 d6 6. O-O Nc6 7. d5 Na5 8. Nfd2 c5 9. a3 Qc7 10. Qc2 b6 11. b4 cxb4 12. axb4 Nb7 13. Bb2 a5 14. e4 Bd7 15. bxa5 Rxa5 16. Nc3 b5 17. Rxa5 Nxa5 18. cxb5 Bxb5 19. Rc1 Rc8 20. Qb1 Bd7 21. Ne2 Qb6 22. Rxc8+ Bxc8 23. Qc2 Ba6 24. Bd4 Qb4 1/2-1/2

[Event "1st Pelion Open 2018"]
[Site "Agios Ioannis-Pelion"]
[Date "2018.06.20"]
[Round "6"]
[White "Ilandzis, Spyridon"]
[Black "Chatzipolitis, Georgios"]
[Result "1-0"]
[ECO "D43"]
[WhiteElo "1990"]
[BlackElo "1726"]
[Annotator "NA"]
[PlyCount "45"]
[EventType "swiss"]
[EventCountry "GRE"]
[SourceTitle "playchess.com"]
[Source "ChessBase"]
[SourceQuality "1"]
[TimeControl "40/5400+30:1800+30"]

1. d4 d5 2. c4 c6 3. Nc3 e6 4. Qd3 Nd7 5. Nf3 Ngf6 6. g3 b6 7. Bg2 Bb7 8. O-O Be7 9. cxd5 cxd5 10. Bf4 O-O 11. Rac1 h6 12. Nb5 Ne8 13. Rc2 g5 14. Bc7 Nxc7 15. Nxc7 Rc8 16. Nxe6 fxe6 17. Qg6+ Kh8 18. Qxh6+ Kg8 19. Bh3 Rxf3 20. Bxe6+ Rf7 21. Qg6+ Kh8 22. Bxf7 Nf8 23. Qg8# 1-0